bitfinex-derivatives/quotes_ETHF0:USTF0_20250411
["timestamp","ask_amount","ask_price","bid_price","bid_amount"]
[1744358652112,1.29273,1548.0,1547.9,3.273]
[1744358653410,1.29273,1548.0,1547.8,4.50066]
[1744358653611,1.29273,1548.0,1547.8,6.6004]
[1744358653612,1.29282,1547.9,1547.8,6.6004]
[1744358653806,1.93921001,1548.0,1547.8,7.89325]
[1744358654006,1.29282,1547.9,1547.8,3.2078]
[1744358654210,1.93919001,1548.0,1547.8,4.5007]
[1744358654416,0.00970905,1548.4,1547.8,8.2078]
[1744358654616,1.29259,1548.2,1548.1,3.2078]
[1744358654816,0.65610906,1548.4,1548.1,3.2078]
[1744358655018,1.30211905,1548.4,1548.3,3.2078]
[1744358655314,0.00970905,1548.4,1548.3,4.50028]
[1744358655920,1.29252,1548.3,1548.1,1.29261]
[1744358656118,1.29252,1548.3,1548.2,3.2078]
[1744358656814,0.00970905,1548.4,1548.2,8.2078]
[1744358657023,0.00970905,1548.4,1548.3,1.29248]
[1744358657217,1.30217905,1548.4,1548.2,4.50031]
[1744358657524,1.29257,1548.2,1548.1,1.2926]
[1744358657725,1.29265,1548.1,1548.0,40.8]
[1744358658615,0.00970905,1548.4,1548.3,1.29248]
[1744358658818,0.00970905,1548.4,1548.3,4.50028]
[1744358659018,0.00970905,1548.4,1548.3,9.50028]
[1744358659220,0.00970905,1548.4,1548.3,3.2078]
[1744358659417,1.30210905,1548.4,1548.3,3.2078]
[1744358659721,1.29273,1548.0,1547.9,3.2078]
[1744358659913,3.5014,1548.3,1547.9,3.2078]
[1744358660119,1.29264,1548.2,1548.1,3.2078]
[1744358660425,1.29253,1548.3,1548.1,4.50043]
[1744358660720,0.00970905,1548.4,1548.3,1.29248]
[1744358660920,0.00970905,1548.4,1548.3,4.50028]
[1744358661120,0.00970905,1548.4,1548.3,9.50028]
[1744358661418,1.30210905,1548.4,1548.3,3.2078]
[1744358661825,0.00970905,1548.4,1548.3,4.50028]
[1744358662323,0.00970905,1548.4,1548.3,9.50028]
[1744358662626,1.29202,1548.9,1548.7,1.29212]
[1744358662820,1.29202,1548.9,1548.8,3.2078]
[1744358663127,1.29192,1549.0,1548.8,4.49983]
[1744358663422,1.29191,1549.0,1548.8,4.49982]
[1744358663622,1.30156905,1549.1,1548.8,3.2078]
[1744358663823,1.30156905,1549.1,1549.0,3.2078]
[1744358664924,0.00970905,1549.1,1549.0,4.4997]
[1744358665130,1.30152905,1549.1,1549.0,3.2078]
[1744358665627,0.00970905,1549.1,1548.8,4.49982]
[1744358665816,0.00970905,1549.1,1549.0,3.2078]
[1744358666020,0.00970905,1549.1,1549.0,4.4997]
[1744358666227,0.00970905,1549.1,1549.0,45.2997]
[1744358666428,1.30152905,1549.1,1549.0,44.0078]
[1744358666933,0.00970905,1549.1,1549.0,50.2997]
[1744358667130,1.29132,1549.7,1549.1,3.22955]
[1744358667317,6.43521,1550.2,1549.7,0.01308151]
[1744358667521,1.2909,1550.2,1550.1,3.2078]
[1744358667824,1.27798849,1550.0,1549.9,3.2078]
[1744358668020,1.30429151,1549.9,1549.7,1.29126]
[1744358668220,0.01308151,1549.9,1549.8,4.50870647]
[1744358668421,1.29115,1549.9,1549.8,3.20439496]
[1744358669135,1.29107,1550.0,1549.8,4.49562496]
[1744358669429,1.30071647,1550.1,1549.8,4.49556496]
[1744358669629,1.30065647,1550.1,1550.0,3.2078]
[1744358670628,0.00967647,1550.1,1550.0,3.2078]
[1744358670828,1.30065647,1550.1,1550.0,3.2078]
[1744358672120,1.29107,1550.0,1549.9,3.5901]
[1744358672325,1.29107,1550.0,1549.9,6.7979]
[1744358676433,1.29115,1549.9,1549.8,0.00967647]
[1744358676638,1.29115,1549.9,1549.8,3.21747647]
[1744358677026,4.49895,1549.9,1549.8,6.47e-06]
[1744358677224,1.29115,1549.9,1549.8,6.47e-06]
[1744358677829,1.29115,1549.9,1549.8,3.20780647]
[1744358678029,0.00967647,1550.1,1549.8,8.20780647]
[1744358678230,1.30065647,1550.1,1550.0,3.2078]
[1744358679031,1.29107,1550.0,1549.9,3.6632]
[1744358681736,1.29107,1550.0,1549.9,4.95433]
[1744358682333,0.00967647,1550.1,1549.9,3.6632]
[1744358682537,1.30066647,1550.1,1550.0,3.2078]
[1744358683032,1.30066647,1550.1,1550.0,44.0078]
[1744358683228,1.29107,1550.0,1549.9,3.6632]
[1744358684927,1.30071647,1550.1,1550.0,1.29107]
[1744358685129,1.30071647,1550.1,1550.0,3.2078]
[1744358685534,1.30071647,1550.1,1550.0,6.6782]
[1744358687638,6.30071647,1550.1,1550.0,3.2078]
[1744358687934,1.30071647,1550.1,1550.0,3.2078]
[1744358688130,1.29115,1549.9,1549.8,40.80000647]
[1744358688336,1.29115,1549.9,1549.8,44.00780647]
[1744358688726,0.00967647,1550.1,1550.0,1.29107]
[1744358688927,0.00967647,1550.1,1550.0,4.49887]
[1744358689123,1.30065647,1550.1,1550.0,3.2078]
[1744358689322,0.00967647,1550.1,1550.0,4.49887]
[1744358690736,0.00967647,1550.1,1550.0,3.2078]
[1744358690931,0.00967647,1550.1,1550.0,4.49887]
[1744358691137,0.00967647,1550.1,1550.0,9.49887]
[1744358691338,0.00967647,1550.1,1550.0,13.24327]
[1744358691740,0.00967647,1550.1,1550.0,8.24327]
[1744358692439,1.30065647,1550.1,1550.0,6.9522]
[1744358692936,0.00967647,1550.1,1550.0,6.9522]
[1744358693138,6.99297,1550.4,1550.1,1.29095]
[1744358693139,1.29087,1550.3,1550.1,1.29095]
[1744358693346,5.05683,1550.4,1550.3,0.01308151]
[1744358693832,1.27773849,1550.3,1550.2,3.8225]
[1744358694034,1.29098,1550.1,1550.0,3.2078]
[1744358694243,1.29098,1550.1,1550.0,3.19471849]
[1744358695243,1.29098,1550.1,1550.0,7.01721849]
[1744358696044,1.29115,1549.9,1549.8,44.00780647]
[1744358696243,1.29114,1550.0,1549.8,45.29901647]
[1744358696439,1.29114,1550.0,1549.9,3.9593]
[1744358697145,1.29115,1549.9,1549.8,40.80000647]
[1744358697442,5.08085,1549.9,1549.8,40.80000647]
[1744358697840,1.29115,1549.9,1549.8,40.80000647]
[1744358698138,0.00967647,1550.4,1550.0,3.2078]
[1744358698343,5.08005,1550.9,1550.5,1.29059]
[1744358698534,3.7897,1550.9,1550.7,3.2078]
[1744358698841,3.78629496,1550.9,1550.8,3.9593]
[1744358699031,3.1003,1551.2,1550.8,5.24967]
[1744358699346,1.29021,1551.1,1551.0,3.2078]
[1744358699836,0.00639026,1551.2,1551.0,4.49799]
[1744358700035,0.00639026,1551.2,1551.1,3.8763]
[1744358700238,0.00639026,1551.2,1551.1,44.6763]
[1744358700536,1.29646026,1551.2,1551.1,44.6763]
[1744358700738,1.29019,1551.1,1550.8,1.30007647]
[1744358700945,1.29650026,1551.2,1551.0,3.2078]
[1744358701238,0.00639026,1551.2,1551.1,45.96645]
[1744358701638,0.00639026,1551.2,1551.1,50.96645]
[1744358701839,0.00639026,1551.2,1551.1,57.45595]
[1744358702039,1.28991,1551.4,1551.2,3.20140974]
[1744358702244,0.6448,1552.1,1551.3,3.969]
[1744358702539,0.6448,1552.1,1551.9,3.2078]
[1744358702540,1.2894,1552.0,1551.9,3.2078]
[1744358703538,1.2894,1552.0,1551.9,7.1768]
[1744358703737,1.28949,1551.9,1551.8,0.00967647]
[1744358704135,5.18359,1552.1,1551.8,3.97867647]
[1744358704343,6.9547151,1552.8,1552.0,3.2078]
[1744358704544,5.18323,1552.5,1552.4,3.2078]
[1744358704738,3.8942,1552.5,1552.1,7.1768]
[1744358704943,3.2078,1552.8,1552.3,3.2078]
[1744358705242,1.28868,1552.9,1552.7,3.2078]
[1744358705447,4.96453,1553.0,1552.7,3.2078]
[1744358705645,3.6759,1553.0,1552.7,3.2078]
[1744358705948,1.28865,1552.9,1552.8,3.2078]
[1744358706339,1.28874,1552.8,1552.7,3.632]
[1744358706537,0.644,1553.2,1552.7,3.632]
[1744358706842,3.6759,1553.3,1553.1,3.2078]
[1744358707046,1.28841,1553.2,1553.1,3.2078]
[1744358707443,3.6759,1553.3,1553.1,3.2078]
[1744358707644,1.28853,1553.1,1552.9,3.632]
[1744358707844,1.28843,1553.2,1553.0,3.2078]
[1744358708046,1.28843,1553.2,1553.1,3.632]
[1744358708246,98.357,1553.7,1553.1,3.632]
[1744358708447,5.09073,1553.7,1553.3,3.2078]
[1744358708743,1.28799,1553.7,1553.6,3.2078]
[1744358709046,14.97755779,1554.1,1553.6,4.49587]
[1744358709343,20.10499436,1554.4,1554.0,3.2078]
[1744358709542,11.56807007,1554.2,1554.1,3.6312]
[1744358709744,6.76419007,1554.2,1554.1,9.91886]
[1744358709941,18.28979436,1554.4,1554.3,1.28749]
[1744358710138,33.56672222,1555.9,1554.5,3.2078]
[1744358710343,33.56672222,1555.9,1555.2,3.2078]
[1744358710344,34.26340298,1555.3,1555.2,3.2078]
[1744358710547,6.43439095,1555.3,1554.8,3.2078]
[1744358710744,6.43439095,1555.2,1555.1,0.00964475]
[1744358710950,11.52380095,1555.3,1555.1,0.00964475]
[1744358711244,14.91767391,1555.6,1555.2,3.2078]
[1744358711436,10.35149095,1555.5,1555.2,3.2078]
[1744358711639,14.91767391,1555.6,1555.4,4.49433]
[1744358711842,21.35206486,1555.6,1555.4,3.2078]
[1744358712042,6.43439095,1555.5,1555.2,3.2078]
[1744358712239,10.35149095,1555.5,1555.2,3.2078]
[1744358712445,6.43439095,1555.4,1555.2,3.2078]
[1744358712648,3.9171,1555.3,1555.2,3.2078]
[1744358712846,10.35149095,1555.3,1555.2,3.2078]
[1744358713047,14.91767391,1555.6,1555.2,8.2078]
[1744358713247,14.91767391,1555.6,1555.5,4.4943]
[1744358713449,21.35206486,1555.6,1555.5,3.2078]
[1744358713653,21.35206486,1555.6,1555.5,45.2943]
[1744358713849,14.91767391,1555.6,1555.5,50.2943]
[1744358714162,27.63848486,1555.6,1555.5,40.8]
[1744358714453,21.35206486,1555.6,1555.1,3.21744475]
[1744358714642,10.41409095,1555.5,1555.2,5.07292]
[1744358714845,3.9797,1555.5,1555.3,45.29443]
[1744358715046,10.41409095,1555.5,1555.3,45.29443]
[1744358715353,1.28615,1556.0,1555.5,1.28644]
[1744358715554,10.41409095,1555.9,1555.6,3.7862]
[1744358715750,3.9797,1555.9,1555.8,3.2078]
[1744358715951,3.2078,1556.3,1556.0,1.28604]
[1744358716250,7.72034095,1556.2,1555.9,3.2078]
[1744358716547,3.2078,1556.5,1556.1,3.2078]
[1744358716741,1.28588,1556.3,1556.1,3.2078]
[1744358716948,3.9797,1556.2,1556.0,0.00964475]
[1744358717151,1.286,1556.1,1556.0,0.00964475]
[1744358717342,7.72039095,1556.1,1556.0,0.00964475]
[1744358717542,25.43579095,1556.1,1555.8,3.2078]
[1744358717748,7.72056095,1556.0,1555.7,3.2078]
[1744358718045,1.28625,1555.8,1555.7,3.2078]
[1744358718452,6.43439095,1555.8,1555.7,3.2078]
[1744358718851,6.43439095,1555.8,1555.7,44.0078]
[1744358719159,7.72064095,1555.8,1555.7,44.0078]
[1744358719653,8.98e-06,1555.9,1555.7,49.0078]
[1744358719850,3.2078,1557.2,1555.9,3.21525]
[1744358720047,3.2078,1557.0,1556.6,3.2078]
[1744358720360,7.71979095,1556.9,1556.6,3.2078]
[1744358720544,3.2078,1556.7,1556.1,3.2078]
[1744358720744,19.61219095,1556.8,1556.1,3.19474921]
[1744358720953,1.28579,1556.4,1556.2,0.00964475]
[1744358721156,3.2078,1556.6,1556.2,3.21744475]
[1744358721455,9.9068,1556.9,1556.5,3.2078]
[1744358721746,6.42134016,1556.7,1556.5,3.2078]
[1744358721949,6.42134016,1556.8,1556.6,1.28559]
[1744358722145,1.28524,1557.1,1556.7,4.49331]
[1744358722345,6.40828937,1557.1,1556.8,4.49322]
[1744358722545,6.40828937,1557.0,1556.8,3.2078]
[1744358722750,1.28521,1557.1,1556.8,3.2078]
[1744358722955,1.28543,1556.8,1556.7,0.00964475]
[1744358723155,6.40828937,1557.3,1556.7,3.21744475]
[1744358723450,6.41898,1558.0,1557.1,3.2078]
[1744358723645,1.28477,1557.6,1557.5,3.2078]
[1744358724150,6.40828937,1557.6,1557.5,3.2078]
[1744358724350,1.28485,1557.5,1557.4,0.00964475]
[1744358724652,10.90093937,1557.5,1557.4,0.00964475]
[1744358724851,7.69313937,1557.5,1557.4,3.21744475]
[1744358725055,7.69313937,1557.5,1557.4,0.00964475]
[1744358725351,11.40828937,1557.5,1557.4,0.00964475]
[1744358725553,12.69313937,1557.5,1557.4,0.00964475]
[1744358725952,5.0,1557.5,1557.0,3.2078]
[1744358726150,6.40828462,1557.4,1557.2,3.2078]
[1744358726351,7.69315462,1557.5,1557.3,40.8]
[1744358726558,3.2078,1557.9,1557.8,1.2846]
[1744358726751,1.28439,1558.1,1557.9,0.01305079]
[1744358727054,7.69239462,1558.4,1558.0,4.49219]
[1744358727255,6.39523383,1558.3,1558.1,40.8]
[1744358727449,0.00964475,1558.4,1558.3,1.28419]
[1744358727653,3.2078,1560.8,1559.0,3.2078]
[1744358727959,3.2078,1561.2,1560.7,3.2078]
[1744358728253,3.2078,1560.8,1560.5,4.49015]
[1744358728444,3.2078,1561.2,1560.6,1.28224]
[1744358728648,9.60303383,1561.4,1561.0,3.2078]
[1744358728844,3.2078,1561.1,1560.7,0.00961354]
[1744358729051,3.2078,1561.2,1560.7,0.00961354]
[1744358729550,3.2078,1560.8,1560.7,0.00961354]
[1744358729747,6.85533,1561.5,1560.7,0.00961354]
[1744358729748,6.39523383,1561.0,1560.7,0.00961354]
[1744358729951,6.39523383,1561.5,1560.9,3.2078]
[1744358730250,0.01554602,1561.6,1561.5,1.28156]
[1744358730452,3.2078,1562.8,1561.8,3.2078]
[1744358730655,4.398,1564.9,1562.8,3.2078]
[1744358730854,28.86952019,1565.7,1564.8,3.2078]
[1744358731049,38.62654259,1566.8,1565.5,3.2078]
[1744358731245,4.1854,1566.7,1565.9,3.2078]
[1744358731447,4.1854,1566.7,1564.4,97.945]
[1744358731448,9.72528899,1566.1,1565.6,3.2078]
[1744358731752,0.0481,1566.0,1565.4,3.2078]
[1744358731954,0.0481,1566.0,1565.9,3.2078]
[1744358732452,15.23894547,1566.1,1566.0,3.2078]
[1744358732650,35.41874259,1566.8,1566.0,3.2078]
[1744358732849,30.64674259,1566.8,1566.7,3.2078]
[1744358733153,3.2078,1567.7,1566.6,3.2078]
[1744358733349,3.2078,1567.4,1566.4,3.2078]
[1744358733549,0.0093711,1566.9,1566.7,6.68562053]
[1744358733750,6.7714,1568.4,1567.2,3.2078]
[1744358733948,3.2078,1569.1,1568.3,3.2078]
[1744358734164,3.2078,1569.8,1568.9,3.2078]
[1744358734452,3.2078,1571.0,1569.6,3.2078]
[1744358734654,3.2078,1571.3,1570.3,3.2078]
[1744358734858,3.2078,1571.3,1568.7,3.2078]
[1744358734859,3.2078,1570.2,1568.7,3.2078]
[1744358735048,0.2182,1569.0,1568.6,3.2078]
[1744358735252,9.5442,1569.4,1568.6,7.08293562]
[1744358735453,3.2078,1568.7,1568.3,3.2078]
[1744358735654,3.2078,1568.9,1568.5,3.2078]
[1744358735858,3.2078,1568.9,1567.9,3.2078]
[1744358736052,3.2078,1568.3,1567.6,3.2078]
[1744358736354,3.2078,1568.7,1567.9,3.2078]
[1744358736661,3.2078,1568.4,1567.4,40.8]
[1744358736957,3.2078,1570.9,1569.4,3.2078]
[1744358737161,3.2078,1570.7,1569.5,3.2078]
[1744358737461,3.2078,1570.7,1569.6,3.2078]
[1744358737651,3.2078,1570.5,1570.1,3.2078]
[1744358737853,3.2078,1570.5,1569.6,7.0496384]
[1744358737854,3.2078,1570.3,1569.8,3.2078]
[1744358738157,3.2078,1569.9,1569.1,3.2078]
[1744358738355,6.38704808,1569.8,1569.3,3.2078]
[1744358738561,3.2078,1569.5,1568.6,51.36149471]
[1744358738758,3.2078,1570.2,1569.3,3.2078]
[1744358739056,6.99954607,1571.3,1570.8,3.2078]
[1744358739359,3.2078,1572.6,1571.5,3.2078]
[1744358739564,3.2078,1572.6,1570.5,7.84924389]
[1744358739565,12.74365847,1572.4,1572.2,3.2078]
[1744358739862,1.2728,1572.3,1571.6,6.83833346]
[1744358740059,3.2078,1571.8,1571.2,3.2078]
[1744358740249,3.2078,1571.5,1571.0,6.83833346]
[1744358740450,97.506,1572.1,1571.0,6.83833346]
[1744358740451,3.2078,1571.7,1571.0,6.83833346]
[1744358740657,3.2078,1571.3,1570.9,3.2078]
[1744358740859,3.2078,1571.5,1571.0,3.2078]
[1744358741046,1.2736,1571.3,1570.7,3.2078]
[1744358741250,3.2078,1570.8,1569.8,7.03577045]
[1744358741452,3.2078,1570.8,1569.5,3.2078]
[1744358741453,3.2078,1570.3,1569.5,3.2078]
[1744358741648,3.2078,1570.1,1569.6,0.12742099]
[1744358741959,15.95145847,1570.3,1569.7,3.2078]
[1744358742162,3.2078,1569.9,1569.1,6.95976918]
[1744358742359,3.2078,1569.2,1568.1,3.2078]
[1744358742656,3.2078,1568.6,1568.2,3.2078]
[1744358742856,23.90813708,1569.8,1566.5,3.4842]
[1744358742857,3.2078,1568.4,1567.6,3.2078]
[1744358743055,4.48418,1567.9,1567.2,3.2078]
[1744358743248,1.27641,1567.8,1567.2,3.2078]
[1744358743452,3.2078,1567.8,1567.2,3.2078]
[1744358743650,3.2078,1568.6,1567.7,3.2078]
[1744358743850,3.2078,1568.2,1567.6,3.2078]
[1744358744056,3.2078,1568.4,1567.6,3.2078]
[1744358744257,3.2078,1568.2,1567.4,44.0078]
[1744358744450,12.74365847,1568.4,1568.1,3.2078]
[1744358744656,12.74365847,1568.4,1567.9,3.2078]
[1744358744860,3.2078,1568.1,1567.4,40.8]
[1744358745156,3.2078,1567.6,1567.4,40.8]
[1744358745357,3.2078,1567.6,1566.9,3.2078]
[1744358745551,1.27686,1567.3,1566.9,3.2078]
[1744358745751,3.2078,1567.2,1566.4,3.2078]
[1744358745953,3.2078,1566.9,1565.9,3.2078]
[1744358746152,3.2078,1566.9,1566.1,3.2078]
[1744358746461,12.74365847,1566.8,1566.2,44.0078]
[1744358746759,5.45464275,1566.7,1566.4,3.2078]
[1744358746952,0.00955079,1566.7,1566.3,0.00955079]
[1744358747158,8.66244275,1566.6,1566.3,0.00955079]
[1744358747360,1.27755,1566.4,1566.3,0.00955079]
[1744358747763,14.93999275,1566.4,1566.3,0.00955079]
[1744358747962,10.45464275,1566.4,1566.3,0.00955079]
[1744358748158,13.66244275,1566.4,1566.3,0.00955079]
[1744358748360,0.00955079,1566.7,1566.3,8.21735079]
[1744358748564,0.00955079,1566.7,1566.6,3.2078]
[1744358748761,5.45464275,1566.6,1566.4,3.22695717]
[1744358748963,1.27747,1566.5,1566.4,3.22695717]
[1744358749162,6.73211275,1566.5,1566.4,0.01915717]
[1744358749365,11.73211275,1566.5,1566.4,0.01915717]
[1744358749565,5.0,1566.5,1565.9,3.2078]
[1744358749767,0.00955079,1566.7,1566.4,3.2078]
[1744358749967,3.2078,1567.6,1566.6,3.2078]
[1744358750161,1.27685,1567.3,1566.9,3.2078]
[1744358750363,3.2078,1567.4,1566.0,99.4192]
[1744358750567,3.2078,1567.4,1566.9,3.2078]
[1744358750763,3.19091,1567.9,1566.4,3.2078]
[1744358750764,3.2078,1567.0,1566.4,3.2078]
[1744358750965,3.2078,1566.8,1566.3,3.2078]
[1744358751168,1.27755,1566.4,1566.1,44.0078]
[1744358751365,1.27755,1566.4,1564.7,3.19731]
[1744358751366,8.0169,1566.3,1565.7,3.2078]
[1744358751571,1.27804,1565.8,1565.7,3.2078]
[1744358751766,1.27827,1565.6,1565.4,3.2078]
[1744358751965,1.28754252,1565.9,1565.8,2.52e-06]
[1744358752166,4.49534252,1565.9,1565.8,2.52e-06]
[1744358752369,4.49534252,1565.9,1564.8,3.2078]
[1744358752370,8.85658252,1565.9,1564.8,3.2078]
[1744358752564,1.27869,1565.0,1564.9,0.12780369]
[1744358752762,4.48649,1565.0,1564.9,3.69e-06]
[1744358752962,1.27869,1565.0,1564.9,3.69e-06]
[1744358753269,1.27915,1564.5,1564.2,3.2078]
[1744358753470,0.04005684,1564.4,1564.3,40.8]
[1744358753767,3.19673,1565.1,1564.3,40.8]
[1744358754068,0.6392,1566.0,1564.8,3.2078]
[1744358754268,3.2078,1567.2,1566.0,0.01302017]
[1744358754473,3.2078,1567.1,1566.4,3.2078]
[1744358754667,3.2078,1567.3,1567.1,0.01302017]
[1744358754866,1.27731,1566.7,1566.6,3.21738252]
[1744358755167,3.2078,1566.8,1566.2,3.2078]
[1744358755367,4.9733,1566.6,1566.5,3.2078]
[1744358755571,6.25069,1566.6,1566.5,44.0078]
[1744358755768,9.9733,1566.6,1566.4,3.2078]
[1744358755974,4.9733,1566.6,1566.4,3.2078]
[1744358756176,4.9733,1566.6,1566.5,3.2078]
[1744358756377,4.9733,1566.6,1566.5,44.0078]
[1744358756973,9.9733,1566.6,1566.5,40.8]
[1744358757168,9.9733,1566.6,1566.5,3.2078]
[1744358757372,4.9733,1566.6,1566.4,3.2078]
[1744358757572,0.00958252,1566.7,1566.4,3.2078]
[1744358757770,0.00958252,1566.7,1566.6,3.2078]
[1744358758471,5.0,1566.7,1566.5,40.8]
[1744358758674,5.0,1566.7,1566.4,3.2078]
[1744358758977,3.2078,1566.9,1566.3,0.00958252]
[1744358759180,1.27749,1566.5,1566.3,0.00958252]
[1744358759376,1.27742,1566.6,1566.3,0.00958252]
[1744358759581,3.2078,1566.5,1565.8,40.8]
[1744358759770,3.2078,1566.1,1565.7,3.2078]
[1744358759970,3.2078,1566.1,1565.5,3.2078]
[1744358760276,4.48579,1565.9,1565.2,3.2078]
[1744358760473,3.2078,1565.7,1565.1,3.2078]
[1744358760669,3.2078,1565.2,1565.0,40.8]
[1744358760978,4.48633,1565.2,1565.1,0.08688651]
[1744358761179,3.2078,1565.2,1564.3,3.2078]
[1744358761475,3.2078,1565.0,1564.5,3.2078]
[1744358761672,3.2078,1564.8,1564.1,3.2078]
[1744358761874,0.00958252,1564.9,1564.6,0.00958252]
[1744358762072,3.2078,1564.8,1564.1,3.2078]
[1744358762267,1.2793,1564.3,1563.8,3.2078]
[1744358762472,3.2078,1564.4,1563.8,3.2078]
[1744358762777,3.2078,1564.0,1562.9,4.11610557]
[1744358762978,3.2078,1563.8,1563.1,3.2078]
[1744358763167,3.2078,1563.4,1562.8,3.2078]
[1744358763375,4.488,1563.2,1562.5,3.2078]
[1744358763569,3.2078,1563.2,1562.6,3.2078]
[1744358763972,0.64,1563.1,1562.6,3.2078]
[1744358764173,1.28074,1562.5,1561.9,4.11610557]
[1744358764373,4.48849,1562.6,1562.1,3.2078]
[1744358764982,98.04,1563.3,1562.0,0.00958252]
[1744358764983,0.00958252,1562.5,1562.0,3.21738252]
[1744358765167,0.00958252,1562.5,1562.3,3.2078]
[1744358765373,1.28087,1562.4,1562.0,3.21738252]
[1744358765573,4.9182,1562.3,1562.2,3.2078]
[1744358766081,0.00958252,1562.5,1562.2,3.2078]
[1744358766282,9.54728252,1562.5,1562.1,3.2078]
[1744358766582,0.6408,1562.4,1562.1,3.2078]
[1744358766784,0.6408,1562.4,1562.3,3.2078]
[1744358766983,0.6408,1562.4,1562.1,3.2078]
[1744358767171,8.2078,1562.4,1562.0,0.00958252]
[1744358767476,3.2078,1562.2,1561.2,3.2078]
[1744358767669,1.28168,1561.4,1561.0,3.2078]
[1744358767876,4.5377,1561.3,1561.0,3.2078]
[1744358768076,4.5377,1561.3,1561.2,3.2078]
[1744358768678,9.5377,1561.3,1561.0,3.2078]
[1744358768878,3.2078,1561.1,1560.1,3.2078]
[1744358769187,3.2078,1560.9,1560.4,3.2078]
[1744358769582,0.6408,1560.8,1560.2,44.0078]
[1744358769880,3.2078,1560.7,1559.9,3.2078]
[1744358770085,0.00961477,1560.7,1560.3,0.00642181]
[1744358770385,0.00961477,1560.7,1560.6,3.2078]
[1744358770583,0.00961477,1560.7,1560.6,4.4901]
[1744358770880,0.00961477,1560.7,1560.3,0.00642181]
[1744358771080,0.00961477,1560.7,1560.5,3.2078]
[1744358771279,0.00961477,1560.7,1560.3,0.00642181]
[1744358771474,3.21741477,1560.7,1560.3,0.00642181]
[1744358771682,3.2078,1560.5,1559.8,3.2078]
[1744358771883,3.2078,1560.3,1559.6,3.2078]
[1744358772187,3.2078,1560.1,1559.6,3.2078]
[1744358772387,3.2078,1560.1,1559.6,6.4156]
[1744358772582,4.49051,1560.1,1559.6,6.4156]
[1744358772788,3.2078,1560.1,1559.6,3.2078]
[1744358772985,3.2078,1560.4,1559.9,1.28287]
[1744358773183,4.8233,1560.7,1560.2,3.2078]
[1744358773389,4.8233,1560.7,1560.0,3.2078]
[1744358773390,8.0311,1560.7,1560.0,3.2078]
[1744358773692,0.00961477,1560.3,1560.2,3.2078]
[1744358773984,0.00961477,1560.3,1560.0,3.2078]
[1744358774178,3.21741477,1560.3,1559.7,3.2078]
[1744358774381,3.2078,1560.1,1559.4,3.2078]
[1744358774683,4.8233,1560.2,1559.9,3.2078]
[1744358774884,4.8233,1560.2,1560.1,3.2078]
[1744358775086,0.64160001,1560.8,1560.1,3.2078]
[1744358775275,0.64160001,1560.8,1560.6,3.2078]
[1744358775875,0.64160001,1560.8,1560.7,3.2078]
[1744358776277,0.00961477,1560.9,1560.7,3.19818523]
[1744358776483,3.85821477,1560.9,1560.6,0.00961477]
[1744358776683,1.28249,1560.4,1560.3,40.8]
[1744358776990,4.5798,1560.8,1560.5,1.28235]
[1744358777188,0.00961477,1560.9,1560.5,3.2078]
[1744358777482,0.6408,1561.2,1560.7,1.28218]
[1744358777691,1.282,1561.0,1560.7,3.2078]
[1744358777890,4.60151477,1561.1,1560.7,1.28221]
[1744358778090,4.60151477,1561.1,1560.6,44.0078]
[1744358778384,0.00961477,1561.1,1560.9,3.2078]
[1744358778590,1.28209,1560.9,1560.7,3.2078]
[1744358778785,3.2078,1560.8,1560.3,11.27355]
[1744358779091,0.00961477,1561.1,1560.7,3.2078]
[1744358779092,3.21741477,1561.1,1560.7,3.2078]
[1744358779281,3.21741477,1561.1,1560.8,40.8]
[1744358779588,1.28208,1560.9,1560.5,4.49018]
[1744358779796,3.2078,1560.9,1560.2,3.2078]
[1744358779984,3.2078,1560.7,1560.3,40.8]
[1744358780185,4.49023,1560.5,1560.2,3.19818523]
[1744358780490,1.28251,1560.4,1560.1,3.2078]
[1744358780694,3.21741477,1561.1,1560.3,3.2078]
[1744358780893,3.21741477,1561.1,1560.7,3.2078]
[1744358781089,0.00961477,1561.1,1560.9,3.2078]
[1744358781590,1.29150477,1561.1,1561.0,3.2078]
[1744358781890,1.29150477,1561.1,1560.6,3.2078]
[1744358781891,3.21741477,1561.1,1560.6,3.2078]
[1744358782098,3.2078,1560.8,1560.4,3.2078]
[1744358782287,6.41324,1560.8,1560.1,3.2078]
[1744358782592,3.2078,1560.2,1559.7,3.2078]
[1744358782785,3.2078,1559.8,1559.2,3.2078]
[1744358782982,3.20716,1560.0,1559.2,2.55658522]
[1744358782983,3.2078,1559.6,1559.2,2.55658522]
[1744358783185,1.28353,1559.1,1558.8,3.2078]
[1744358783390,3.2078,1559.4,1558.8,3.2078]
[1744358783690,0.00961477,1559.1,1559.0,1.28359]
[1744358783987,0.64160001,1560.1,1559.3,3.20842]
[1744358784189,0.64160001,1560.1,1559.8,3.2078]
[1744358784381,3.84940001,1560.1,1559.4,5.0448]
[1744358784583,1.28339,1559.3,1558.9,3.2078]
[1744358784783,3.2078,1560.7,1559.5,3.20799]
[1744358784984,4.9885,1560.8,1560.1,3.2078]
[1744358785186,4.9885,1560.8,1560.5,3.2078]
[1744358785386,3.2078,1561.2,1560.7,3.2078]
[1744358785693,1.28225,1560.7,1560.3,0.00961477]
[1744358785894,4.49014,1560.6,1560.3,0.00961477]
[1744358786190,0.00961477,1560.8,1560.3,3.21741477]
[1744358786191,0.6408,1560.7,1560.3,3.21741477]
[1744358786495,0.6408,1560.7,1560.4,8.2526]
[1744358786686,0.6408,1560.7,1560.5,40.8]
[1744358786887,0.00961477,1560.8,1560.6,3.2078]
[1744358787087,3.2078,1561.2,1560.7,4.5701]
[1744358787287,0.6408,1561.3,1560.8,3.2078]
[1744358787493,3.2078,1561.0,1560.7,4.5701]
[1744358787688,3.2078,1561.0,1560.7,7.12668522]
[1744358787890,97.721,1563.6,1561.1,3.2078]